{"text_format":"1","workbook":"xlsx","n_sheets":3,"sheets":["Plan2","VARIAS CENA CONF. A SITUAÇÃO","ULTIMA FOLHA MD TANQUE"],"not_rendered":{"charts":0,"images":1,"macros":0,"external_links":0,"defined_names":5,"comments":0,"pivot_tables":0},"unopened":[],"bounds":{"document_bytes":16777216,"sheet_cells":100000,"rows_first":2000,"rows_last":500,"rows_between":2000,"halvings":0,"cell_chars":16384,"cell_head_chars":4096},"cells_cut":0,"cells_raw":0,"read":"whole","date_system":"1900"}

{"sheet":"Plan2","index":0,"n_rows":65,"n_cols":23,"rows_kept":65,"cut":false,"hidden":false,"merged":[[62,1,62,6],[64,1,64,9],[49,21,49,22],[53,1,53,10],[53,13,53,22],[54,0,55,23],[58,0,59,23],[60,0,60,23],[49,0,49,2],[49,5,49,7],[49,9,49,10],[49,12,49,14],[49,17,49,19],[42,14,42,16],[42,19,42,21],[43,0,45,11],[43,12,45,23],[48,0,48,23],[39,0,41,23],[29,0,29,5],[32,0,32,23],[33,10,33,23],[34,0,34,2],[35,0,35,3],[35,11,35,14],[35,15,35,23],[36,0,36,6],[36,7,36,9],[37,1,37,3],[37,4,37,23],[38,0,38,23],[25,10,25,15],[25,16,25,23],[27,2,27,3],[27,10,27,11],[27,13,27,14],[27,16,27,17],[27,19,27,20],[27,22,27,23],[24,0,24,5],[14,0,14,23],[15,0,15,3],[15,4,15,10],[15,11,15,23],[16,4,16,9],[16,10,16,23],[17,4,17,9],[17,10,17,23],[18,0,18,23],[22,8,22,19],[23,0,23,23],[13,0,13,23],[8,2,8,9],[8,18,8,22],[9,2,9,12],[9,14,9,17],[9,18,9,22],[10,2,10,12],[10,18,10,22],[11,2,11,12],[11,14,11,17],[11,18,11,22],[12,0,12,12],[12,18,12,22],[4,0,4,2],[5,0,5,23],[6,0,6,7],[6,13,6,23],[7,2,7,8],[7,14,7,17],[7,18,7,22],[3,0,3,23],[0,0,0,6],[0,7,0,16],[0,17,0,23],[1,0,1,23],[2,0,2,2]]}
["Nº do protocolo:",null,null,null,null,null,null,"DIRETORIA DE SERVIÇOS TÉCNICOS",null,null,null,null,null,null,null,null,null,"FOLHA 2/2"]
["7.  SISTEMA DE HIDRANTES (NBR 13714 / IT)"]
["4.1 Existe? ",null,null,null,null,"SIM",null,null,"NÃO"]
["8.  SISTEMA DE SPRINKLERS (CHUVEIROS AUTOMÁTICOS) (NBR 10897/NBR 13792)"]
["5.1 Existe? ",null,null,null,null,"SIM",null,null,"NÃO"]
["9.  SISTEMA DE ILUMINAÇÃO DE EMERGÊNCIA (NBR 10898)"]
["6.1 Sistema adotado na edificação",null,null,null,null,null,null,null,null,null,null,null,null,"6.2 Função do sistema, quantidade e autonomia"]
[null,null,"Conjunto de blocos autônomos",null,null,null,null,null,null,null,null,null,null,null,"Aclareamento:",null,null,null,"a) Quantidade (und):"]
[null,null,"Sistema centralizado com baterias",null,null,null,null,null,null,null,null,null,null,null,null,null,null,null,"b) Autonomia (min):"]
[null,null,"Sistema centralizado com grupo moto-gerador",null,null,null,null,null,null,null,null,null,null,null,"Balizamento:",null,null,null,"a) Quantidade (und):"]
[null,null,"Luiminária tipo industrial (faroletes)",null,null,null,null,null,null,null,null,null,null,null,null,null,null,null,"b) Autonomia (min):"]
[null,null,"Outros:",null,null,null,null,null,null,null,null,null,null,null,"Industrial",null,null,null,"a) Quantidade (und):"]
[null,null,null,null,null,null,null,null,null,null,null,null,null,null,null,null,null,null,"b) Autonomia (min):"]
["OBS.  O grupo moto-gerador deverá alimentar de maneira automática somente as luminárias de emergência,"]
["ou seja, em caso de falta ou interrupção de energia, os equipamentos só serão ligados manualmente"]
["6.3 Localização:",null,null,null,"a) Baterias de acumuladores:"]
[null,null,null,null,"b) Grupo moto-gerador:"]
[null,null,null,null,"c) Painel de comando:"]
["10. RISCOS ESPECIAIS"]
[null,null,null,"GLP"]
[null,null,null,"LÍQUIDOS INFLAMÁVEIS"]
[null,null,null,"MATERIAIS EXPLOSIVOS"]
[null,null,null,"OUTROS",null,null,"Qual?",null,"_______________________________________________"]
["11.  SISTEMA DE DETECÇÃO E ALARME DE INCÊNDIO (NBR 9441)"]
["8.1 Sistema de detecção: "]
["Existe?",null,null,null,null,"SIM",null,null,"NÃO",null,"Localização da central"]
["8.2 Tipos de detectores:"]
[null,null,"Térmicos",null,null,"Termovelocimétricos",null,null,null,null,"Iônicos",null,null,"Ópticos",null,null,"Chama",null,null,"Outros:"]
[]
["8.3 Sistema de Alarme: "]
["Existe?",null,null,null,null,"SIM",null,null,"NÃO"]
[]
["12.  CENTRAL DE GÁS"]
[null,null,null,null,null,null,null,null,null,null,"9.5 Tipo de recipientes (caso possua)"]
["9.1 Existe? ",null,null,null,null,"SIM",null,null,"NÃO",null,"P-5",null,"P-8",null,"P-13",null,"P-20",null,"P-45",null,"P-90"]
["9.2 Tipo de gás:",null,null,null,null,null,null,null,null,null,"9.6","Nº de cilindros"]
["9.3 Quantidade de gás (KG):"]
["9.4","Localização:"]
["13.  TERMO DE RESPONSABILIDADE"]
["Responsabilizamo-nos, sob as penas da Lei, que as informações constantes neste memorial descritivo, estão em conformidade com as Legislações e Normas Técnicas vigentes, para proteção da referida edificação em sua totalidade."]
[]
[]
[null,null,null,null,null,null,null,null,null,null,null,null,null,null,"Belém-PA,",null,null,null,"de",null,null,null,"de"]
["Assinatura do responsável técnico",null,null,null,null,null,null,null,null,null,null,null,"Assinatura do proprietário/responsável"]
[]
[]
[]
[]
["PARA USO EXCLUSIVO DO CBMPA (SEÇÃO DE ANÁLISE DE PROJETO)"]
["Belém-PA,",null,null,null,"de",null,null,null,"de",null,null,null,"Belém-PA,",null,null,null,"de",null,null,null,"de"]
[]
[]
[]
[null,"Examinador",null,null,null,null,null,null,null,null,null,null,null,"Chefe do CAT"]
["OBS: O presente documento é obtido no site www.bombeiros.pa.gov.br no link Serviços Técnicos e deverá ser preenchido completamente e entregue 02 (duas) vias devidamente assinadas. "]
[]
[]
[]
["Deixei aqui para você avaliar, mas já tem no item 3. MEDIDAS DE PROTEÇÃO CONTRA INCÊNDIO E PÂNICO, ficaria repetitivo"]
[]
["7. BRIGADA E PLANO DE INTERVENÇÃO (DECRETO 357/07)"]
[]
["7.1 ","Brigada de Incêndio:",null,null,null,null,null,null,null,null,null,"SIM",null,null,"NÃO"]
[]
["7.2","Plano de intervenção de incêndio:",null,null,null,null,null,null,null,null,null,"SIM",null,null,"NÃO"]

{"sheet":"VARIAS CENA CONF. A SITUAÇÃO","index":1,"n_rows":394,"n_cols":22,"rows_kept":394,"cut":false,"hidden":false,"merged":[[98,19,98,20],[99,19,99,20],[164,19,164,20],[165,19,165,20],[230,19,230,20],[231,19,231,20],[296,19,296,20],[295,10,295,23],[264,0,264,23],[265,0,265,23],[266,0,266,7],[266,8,266,15],[266,16,266,23],[267,0,267,23],[268,0,268,23],[269,0,269,23],[270,5,270,6],[254,14,254,15],[255,14,255,15],[256,0,256,23],[257,12,257,13],[258,6,258,8],[296,7,296,8],[288,7,288,8],[320,14,320,15],[321,14,321,15],[322,0,322,23],[323,12,323,13],[324,6,324,8],[325,13,325,14],[326,10,326,12],[326,21,326,22],[327,10,327,12],[327,13,327,14],[310,14,310,15],[311,14,311,15],[312,14,312,15],[313,0,313,23],[314,5,314,14],[316,7,316,9],[317,7,317,8],[318,7,318,8],[319,14,319,15],[303,0,303,23],[304,0,304,23],[305,5,305,14],[305,15,305,23],[306,12,306,23],[307,14,307,15],[308,15,308,23],[309,7,309,8],[309,15,309,23],[297,7,297,8],[298,7,298,8],[299,0,299,23],[300,11,300,12],[300,15,300,23],[301,6,301,7],[301,15,301,23],[297,19,297,20],[302,11,302,12],[289,7,289,8],[291,5,291,14],[291,15,291,23],[292,5,292,6],[292,15,292,23],[293,16,293,17],[294,15,294,23],[280,0,280,23],[281,0,281,23],[282,5,282,14],[282,15,282,23],[283,15,283,23],[284,13,284,15],[285,15,285,23],[286,10,286,23],[287,7,287,8],[271,5,271,6],[272,5,272,6],[273,5,273,6],[274,5,274,6],[275,4,275,10],[276,4,276,10],[277,4,277,10],[279,0,279,5],[279,6,279,10],[278,6,278,9],[259,13,259,14],[260,10,260,12],[260,21,260,22],[261,10,261,12],[261,13,261,14],[244,14,244,15],[245,14,245,15],[246,14,246,15],[247,0,247,23],[248,5,248,14],[250,7,250,9],[251,7,251,8],[252,7,252,8],[253,14,253,15],[236,11,236,12],[237,0,237,23],[238,0,238,23],[239,5,239,14],[239,15,239,23],[240,12,240,23],[241,14,241,15],[242,15,242,23],[243,7,243,8],[243,15,243,23],[229,10,229,23],[230,7,230,8],[231,7,231,8],[232,7,232,8],[233,0,233,23],[234,11,234,12],[234,15,234,23],[235,6,235,7],[235,15,235,23],[222,7,222,8],[223,7,223,8],[225,5,225,14],[225,15,225,23],[226,5,226,6],[226,15,226,23],[227,16,227,17],[228,15,228,23],[214,0,214,23],[215,0,215,23],[216,5,216,14],[216,15,216,23],[217,15,217,23],[218,13,218,15],[219,15,219,23],[220,10,220,23],[221,7,221,8],[205,5,205,6],[206,5,206,6],[207,5,207,6],[208,5,208,6],[209,4,209,10],[210,4,210,10],[211,4,211,10],[213,0,213,5],[213,6,213,10],[212,6,212,9],[198,0,198,23],[199,0,199,23],[200,0,200,7],[200,8,200,15],[200,16,200,23],[201,0,201,23],[202,0,202,23],[203,0,203,23],[204,5,204,6],[98,7,98,8],[99,7,99,8],[100,7,100,8],[155,7,155,8],[156,7,156,8],[77,4,77,10],[78,4,78,10],[79,4,79,10],[82,0,82,23],[88,10,88,23],[93,5,93,14],[93,15,93,23],[94,5,94,6],[94,15,94,23],[95,16,95,17],[96,15,96,23],[97,10,97,23],[89,7,89,8],[90,7,90,8],[91,7,91,8],[101,0,101,23],[112,14,112,15],[108,12,108,23],[109,14,109,15],[193,13,193,14],[194,10,194,12],[194,21,194,22],[195,10,195,12],[195,13,195,14],[184,7,184,9],[185,7,185,8],[186,7,186,8],[102,11,102,12],[102,15,102,23],[103,6,103,7],[103,15,103,23],[104,11,104,12],[105,0,105,23],[106,0,106,23],[107,5,107,14],[107,15,107,23],[164,7,164,8],[165,7,165,8],[166,7,166,8],[190,0,190,23],[191,12,191,13],[192,6,192,8],[169,15,169,23],[170,11,170,12],[171,0,171,23],[172,0,172,23],[173,5,173,14],[173,15,173,23],[174,12,174,23],[175,14,175,15],[176,15,176,23],[178,14,178,15],[22,10,22,23],[179,14,179,15],[180,14,180,15],[181,0,181,23],[182,5,182,14],[187,14,187,15],[188,14,188,15],[189,14,189,15],[0,0,0,23],[1,0,1,23],[2,0,2,7],[2,8,2,15],[2,16,2,23],[3,0,3,23],[18,15,18,23],[19,15,19,23],[20,13,20,15],[4,0,4,23],[5,0,5,23],[6,5,6,6],[7,5,7,6],[9,5,9,6],[16,0,16,23],[10,5,10,6],[12,4,12,10],[13,4,13,10],[8,5,8,6],[14,6,14,9],[17,0,17,23],[15,0,15,5],[15,6,15,10],[18,5,18,14],[21,15,21,23],[11,4,11,10],[23,7,23,8],[24,7,24,8],[25,7,25,8],[62,10,62,12],[62,21,62,22],[61,13,61,14],[37,15,37,23],[27,5,27,14],[27,15,27,23],[28,5,28,6],[28,15,28,23],[29,16,29,17],[30,15,30,23],[31,10,31,23],[38,11,38,12],[40,0,40,23],[58,0,58,23],[59,12,59,13],[52,7,52,9],[34,7,34,8],[54,7,54,8],[41,5,41,14],[41,15,41,23],[42,12,42,23],[47,14,47,15],[49,0,49,23],[46,14,46,15],[55,14,55,15],[56,14,56,15],[57,14,57,15],[32,7,32,8],[33,7,33,8],[72,5,72,6],[39,0,39,23],[45,7,45,8],[44,15,44,23],[45,15,45,23],[37,6,37,7],[43,14,43,15],[53,7,53,8],[35,0,35,23],[36,15,36,23],[36,11,36,12],[48,14,48,15],[50,5,50,14],[60,6,60,8],[32,19,32,20],[33,19,33,20],[73,5,73,6],[74,5,74,6],[84,5,84,14],[84,15,84,23],[85,15,85,23],[86,13,86,15],[87,15,87,23],[63,10,63,12],[63,13,63,14],[66,0,66,23],[67,0,67,23],[68,0,68,7],[68,8,68,15],[68,16,68,23],[75,5,75,6],[76,5,76,6],[69,0,69,23],[70,0,70,23],[71,0,71,23],[81,0,81,5],[81,6,81,10],[83,0,83,23],[80,6,80,9],[110,15,110,23],[111,7,111,8],[111,15,111,23],[113,14,113,15],[114,14,114,15],[115,0,115,23],[116,5,116,14],[118,7,118,9],[119,7,119,8],[120,7,120,8],[122,14,122,15],[121,14,121,15],[123,14,123,15],[124,0,124,23],[125,12,125,13],[126,6,126,8],[127,13,127,14],[128,10,128,12],[128,21,128,22],[129,10,129,12],[129,13,129,14],[132,0,132,23],[133,0,133,23],[134,0,134,7],[134,8,134,15],[134,16,134,23],[135,0,135,23],[136,0,136,23],[153,15,153,23],[154,10,154,23],[141,5,141,6],[142,5,142,6],[143,4,143,10],[144,4,144,10],[145,4,145,10],[147,0,147,5],[147,6,147,10],[148,0,148,23],[146,6,146,9],[4,30,4,37],[167,0,167,23],[168,11,168,12],[168,15,168,23],[169,6,169,7],[177,7,177,8],[177,15,177,23],[159,5,159,14],[159,15,159,23],[160,5,160,6],[160,15,160,23],[161,16,161,17],[162,15,162,23],[163,10,163,23],[157,7,157,8],[140,5,140,6],[149,0,149,23],[150,5,150,14],[150,15,150,23],[151,15,151,23],[152,13,152,15],[137,0,137,23],[138,5,138,6],[139,5,139,6],[330,0,330,23],[331,0,331,23],[332,0,332,7],[332,8,332,15],[332,16,332,23],[333,0,333,23],[334,0,334,23],[335,0,335,23],[336,5,336,6],[337,5,337,6],[338,5,338,6],[339,5,339,6],[340,5,340,6],[341,4,341,10],[342,4,342,10],[343,4,343,10],[344,6,344,9],[345,0,345,5],[345,6,345,10],[346,0,346,23],[347,0,347,23],[348,5,348,14],[348,15,348,23],[349,15,349,23],[350,13,350,15],[351,15,351,23],[352,10,352,23],[353,7,353,8],[354,7,354,8],[355,7,355,8],[357,5,357,14],[357,15,357,23],[358,5,358,6],[358,15,358,23],[359,16,359,17],[360,15,360,23],[361,10,361,23],[362,7,362,8],[362,19,362,20],[363,7,363,8],[363,19,363,20],[364,7,364,8],[365,0,365,23],[366,11,366,12],[366,15,366,23],[367,6,367,7],[367,15,367,23],[368,11,368,12],[369,0,369,23],[370,0,370,23],[371,5,371,14],[371,15,371,23],[372,12,372,23],[373,14,373,15],[374,15,374,23],[375,7,375,8],[375,15,375,23],[376,14,376,15],[377,14,377,15],[378,14,378,15],[379,0,379,23],[380,5,380,14],[382,7,382,9],[383,7,383,8],[384,7,384,8],[385,14,385,15],[386,14,386,15],[387,14,387,15],[388,0,388,23],[389,12,389,13],[390,6,390,8],[391,13,391,14],[392,10,392,12],[392,21,392,22],[393,10,393,12],[393,13,393,14]]}
["CORPO DE BOMBEIROS MILITAR DO PARÁ"]
["PRIMEIRO CENÁRIO (TANQUE 1 EM CHAMAS)"]
["Nº do protocolo: ",null,null,null,null,null,null,null,"MEMORIAL PARA TANQUES",null,null,null,null,null,null,null,"Visto do Analista:"]
["ANÁLISES DOS CENÁRIOS"]
["PRIMEIRO CENÁRIO (TANQUE 1 EM CHAMAS)"]
["1 DADOS:"]
[{"$f":"IF($E12=\"HORIZONTAL\",IF($E13=\"CILÍNDRICO\",\"1.1 Diâmetro do tanque:\",\"1.1 Largura do tanque:\"),\"1.1 Diâmetro do tanque:\")","v":"1.1 Diâmetro do tanque:"},null,null,null,null,null,null,"m",null,null,null,"1.11 Quantidade de tanques vizinhos para resfriamento:"]
[{"$f":"IF($E12=\"HORIZONTAL\",IF($E13=\"CILÍNDRICO\",\"1.2 Comprimento tanque:\",\"1.2 Altura do tanque:\"),\"1.2 Altura do tanque:\")","v":"1.2 Altura do tanque:"},null,null,null,null,null,null,"m",null,null,null,"1.12 Distância entre costados do tanque 1 para o:"]
[{"$f":"IF($E12=\"HORIzONTAL\",\"1.3 Área proj. horizontal:\",\"1.3 Área do costado:\")","v":"1.3 Área do costado:"},null,null,null,null,null,null,"m²"]
[{"$f":"IF($E12=\"HORIZONTAL\",IF($E13=\"CILÍNDRICO\",\"1.4 Área lateral:\",\"1.4 Altura do tanque:\"),\"1.4 Área do teto:\")","v":"1.4 Área do teto:"},null,null,null,null,null,null,{"$f":"IF($E13=\"CILÍNDRICO\",\"m²\",\"m\")","v":"m"}]
["1.5 Volume do tanque:",null,null,null,null,null,null,"m³"]
["1.6 Tipo de tanque:"]
["1.7 Tipo de formato:"]
["1.8 Tipo de teto:"]
["1.9 Tipo de líquido inflamável:"]
["1.10 Clase do líquido inflamável:"]
["2 SISTEMA DE PROTEÇÃO POR RESFRIAMENTO"]
[{"$f":"IF(E12=\"HORIZONTAL\",\"2.1 PARA O TANQUE EM CHAMAS HORIZONTAL NÃO SE FAZ RESFRIAMENTO\",\"2.1 PARA O TANQUE EM CHAMAS\")","v":"2.1 PARA O TANQUE EM CHAMAS"}]
["2.1.1 Tipo de proteção:",null,null,null,null,null,null,null,null,null,null,null,null,null,null,"(Tabela 10 da IT 25-2/2011 de SP)"]
["2.1.2 Taxa de aplicação:",null,null,null,null,null,"L/min/m² da área do costado",null,null,null,null,null,null,null,null,"(Item 6.4.4.1 da IT 25-2/2011 de SP)"]
["2.1.3 Vazão de resfriamento (área do costado x taxa de aplicação):",null,null,null,null,null,null,null,null,null,null,null,null,null,null,null,"L/min"]
["2.1.4 Ajuste da vazão considerando a pressão mínima de 45 m.c.a. ",null,null,null,null,null,null,null,null,null,null,null,null,null,null,"(Item 6.4.5.2 da IT 25-2/2011 de SP)"]
["2.1.4.1 Marca/modelo de Esguicho usado no cálculo:"]
["2.1.4.2 Pressão mínima no esguicho:",null,null,null,null,null,null,null,null,"m.c.a.",null,null,null,null,null,"(Em cada esguicho)"]
["2.1.4.3 Alcanse do esguicho:",null,null,null,null,null,null,null,null,"metros",null,null,null,null,null,"(De cada esguicho)"]
["2.1.4.4 Vazão considerada:",null,null,null,null,null,null,null,null,"L/min"]
[{"$f":"IF(E12=\"HORIZONTAL\",\"2.2 TANQUE HORIZONTAL EM CHAMAS NÃO SE RESFRIAM TANQUES VIZINHOS DA MESMA BACIA\",\"2.2 PARA OS TANQUES VIZINHOS:\")","v":"2.2 PARA OS TANQUES VIZINHOS:"}]
["2.2.1 Tipo de proteção:",null,null,null,null,null,null,null,null,null,null,null,null,null,null,"(Tabela 10 da IT 25-2/2011 de SP)"]
["2.2.2 Taxa de aplicação: ",null,null,null,null,null,null,"L/min/m² da área do costado",null,null,null,null,null,null,null,"(Tabela 12 da IT 25-2/2011 de SP)"]
[{"$f":"IF(V7<=2,\"2.2.3 Vazão de resfriamento (áreas dos costados/2 e dos tetos/2 x taxa de aplicação):\",\"2.2.3 Vazão de resfriamento (áreas dos costados/3 e dos tetos/3 x taxa de aplicação):\")","v":"2.2.3 Vazão de resfriamento (áreas dos costados/2 e dos tetos/2 x taxa de aplicação):"},null,null,null,null,null,null,null,null,null,null,null,null,null,null,null,null,null,"L/min"]
["2.2.4 Ajuste da vazão considerando a pressão mínima de 45 m.c.a. ",null,null,null,null,null,null,null,null,null,null,null,null,null,null,"(Item 6.4.5.2 da IT 25-2/2011 de SP)"]
["2.2.4.1 Marca/modelo de Esguicho usado no cálculo:"]
["2.1.4.2 Pressão mínima no esguicho:",null,null,null,null,null,null,null,null,"m.c.a.",null,null,"2.1.4.3 Pressão máxima no esguicho:",null,null,null,null,null,null,null,null,"m.c.a."]
["2.2.4.4 Alcanse mínimo do esguicho:",null,null,null,null,null,null,null,null,"metros",null,null,"2.2.4.5 Alcanse máximo do esguicho:",null,null,null,null,null,null,null,null,"metros"]
["2.2.4.6 Vazão considerada:",null,null,null,null,null,null,null,null,"L/min"]
["2.3 VAZÃO E QUANTIDADE DE ÁGUA PARA O SISTEMA DE RESFRIAMENTO"]
["2.3.1 Vazão total (tanque em chamas + tanques vizinhos):",null,null,null,null,null,null,null,null,null,null,null,null,"L/min",null,"(Item 6.4.5.3 da IT 25-2/2011 de SP)"]
["2.3.2 Tempo de resfriamento: ",null,null,null,null,null,null,null,"minutos",null,null,null,null,null,null,"(Tabela 13 da IT 25-2/2011 de SP)"]
["2.3.3 Quantidade de água para o sistema de resfriamento:",null,null,null,null,null,null,null,null,null,null,null,null,"Litros",null,"(2.3.1 x 2.3.2)"]
["3 SISTEMA DE PROTEÇÃO POR ESPUMA"]
[{"$f":"IF(E12=\"HORIZONTAL\",\"3.1 PARA O TANQUE EM CHAMAS HORIZONTAIS NÃO SE UTILIZA SISTEMA DE PROTEÇÃO POR ESPUMA\",\"3.1 PARA O TANQUE EM CHAMAS\")","v":"3.1 PARA O TANQUE EM CHAMAS"}]
["3.1,1 Tipo de proteção: ",null,null,null,null,null,null,null,null,null,null,null,null,null,null,"(Tabela 03 da IT 25-2/2011 de SP)"]
["3.1.2 Taxa de aplicação:",null,null,null,null,null,"L/min/m² da área do teto",null,null,null,null,null,"(Tabela 04 e item 6.3.6.4 da IT 25-2/2011 de SP)"]
["3.1.3 Vazão da solução de espuma (área do teto x taxa de aplicação): ",null,null,null,null,null,null,null,null,null,null,null,null,null,null,null,"L/min"]
["3.1.4 Dosagem do proporcionador: ",null,null,null,null,null,null,null,null,null,null,null,null,null,null,"(Item 5.6.6.2 da IT 25-1/2011 de SP)"]
["3.1.5 Tempo mínimo de aplicação:",null,null,null,null,null,null,null,null,"minutos",null,null,null,null,null,"(Tabela 04 da IT 25-2/2011 de SP)"]
["3.1.6 Quantidade de solução (água + LGE) para tanque em chamas:",null,null,null,null,null,null,null,null,null,null,null,null,null,null,null,"Litros",null,"(3.1.3 x 3.1.5)"]
["3.1.7 Quantidade de líquido gerador de espuma (LGE):",null,null,null,null,null,null,null,null,null,null,null,null,null,null,null,"Litros",null,"(3.1.4 x 3.1.6)"]
["3.1.8 Quantidade de água para sistema de espuma do tanque em chamas:",null,null,null,null,null,null,null,null,null,null,null,null,null,null,null,"Litros",null,"(3.1.6 - 3.1.7)"]
["3.2 PARA AS LINHAS SUPLEMENTARES (BACIA DE CONTENÇÃO)"]
["3.2.1 Tipo de proteção: ",null,null,null,null,null,null,null,null,null,null,null,null,null,null,"(Item 6.3.9.2 da IT 25-2/2011 de SP)"]
["3.2.2 Número mínimo de aplicadores: ",null,null,null,null,null,null,null,null,null,"unid",null,null,null,null,"(Tabela 08 da IT 25-2/2011 de SP)"]
["3.2.3 Vazão da solução de espuma: ",null,null,null,null,null,null,null,null,null,"L/min",null,null,null,null,"(Item 6.3.9.2 da IT 25-2/2011 de SP)"]
["3.2.4 Dosagem do proporcionador: ",null,null,null,null,null,null,null,null,null,null,null,null,null,null,"(Item 5.6.6.2 da IT 25-1/2011 de SP)"]
["3.2.5 Tempo mínimo de aplicação ",null,null,null,null,null,null,null,null,"minutos",null,null,null,null,null,"(Tabela 09 da IT 25-2/2011 de SP)"]
["3.2.6 Quantidade de solução (água + LGE) para linhas suplementares:",null,null,null,null,null,null,null,null,null,null,null,null,null,null,null,"Litros",null,"(3.2.3 x 3.2.5)"]
["3.2.7 Quantidade de líquido gerador de espuma (LGE):",null,null,null,null,null,null,null,null,null,null,null,null,null,null,null,"Litros",null,"(3.2.4 x 3.2.6)"]
["3.2.8 Quantidade de água para sistema de espuma das Linhas suplementares:",null,null,null,null,null,null,null,null,null,null,null,null,null,null,null,"Litros",null,"(3.2.6 - 3.2.7)"]
["3.3 VAZÃO E QUANTIDADE DE ÁGUA PARA O SISTEMA DE PROTEÇÃO POR ESPUMA"]
["3.3.1 Vazão total (tanque em chamas + linhas suplemenares):",null,null,null,null,null,null,null,null,null,null,null,null,null,"L/min"]
["3.3.2 Quantidade de LGE:",null,null,null,null,null,null,null,null,"Litros",null,null,null,"(Duplicado segundo o item 5.6.5.3 da IT 25-2/2011 de SP)"]
["3.3.3 Quantidade de água para o sistema de proteção por espuma:",null,null,null,null,null,null,null,null,null,null,null,null,null,null,"Litros"]
["RESERVA TÉCNICA DE INCÊNDIO DO CENÁRIO:",null,null,null,null,null,null,null,null,null,null,null,null,"Litros",null,"QUANTIDADE DE LGE:",null,null,null,null,null,"Litros"]
["VAZÃO DO CENÁRIO:",null,null,null,null,null,null,null,null,null,null,null,null,"m³/h"]
[]
[]
["CORPO DE BOMBEIROS MILITAR DO PARÁ"]
["DIRETORIA DE SERVIÇOS TÉCNICOS"]
["Nº do protocolo: ",null,null,null,null,null,null,null,"MEMORIAL PARA TANQUES",null,null,null,null,null,null,null,"Visto do Analista:"]
["ANÁLISES DOS CENÁRIOS"]
["PRIMEIRO CENÁRIO (TANQUE 2 EM CHAMAS)"]
["1 DADOS:"]
[{"$f":"IF($E78=\"HORIZONTAL\",IF($E79=\"CILÍNDRICO\",\"1.1 Diâmetro do tanque:\",\"1.1 Largura do tanque:\"),\"1.1 Diâmetro do tanque:\")","v":"1.1 Diâmetro do tanque:"},null,null,null,null,null,null,"m",null,null,null,"1.11 Quantidade de tanques vizinhos para resfriamento:"]
[{"$f":"IF($E78=\"HORIZONTAL\",IF($E79=\"CILÍNDRICO\",\"1.2 Comprimento tanque:\",\"1.2 Altura do tanque:\"),\"1.2 Altura do tanque:\")","v":"1.2 Altura do tanque:"},null,null,null,null,null,null,"m",null,null,null,"1.12 Distância entre costados do tanque 1 para o:"]
[{"$f":"IF($E78=\"HORIzONTAL\",\"1.3 Área proj. horizontal:\",\"1.3 Área do costado:\")","v":"1.3 Área do costado:"},null,null,null,null,null,null,"m²"]
[{"$f":"IF($E78=\"HORIZONTAL\",IF($E79=\"CILÍNDRICO\",\"1.4 Área lateral:\",\"1.4 Altura do tanque:\"),\"1.4 Área do teto:\")","v":"1.4 Área do teto:"},null,null,null,null,null,null,{"$f":"IF($E79=\"CILÍNDRICO\",\"m²\",\"m\")","v":"m"}]
["1.5 Volume do tanque:",null,null,null,null,null,null,"m³"]
["1.6 Tipo de tanque:"]
["1.7 Tipo de formato:"]
["1.8 Tipo de teto:"]
["1.9 Tipo de líquido inflamável:"]
["1.10 Clase do líquido inflamável:"]
["2 SISTEMA DE PROTEÇÃO POR RESFRIAMENTO"]
[{"$f":"IF(E78=\"HORIZONTAL\",\"2.1 PARA O TANQUE EM CHAMAS HORIZONTAL NÃO SE FAZ RESFRIAMENTO\",\"2.1 PARA O TANQUE EM CHAMAS\")","v":"2.1 PARA O TANQUE EM CHAMAS"}]
["2.1.1 Tipo de proteção:",null,null,null,null,null,null,null,null,null,null,null,null,null,null,"(Tabela 10 da IT 25-2/2011 de SP)"]
["2.1.2 Taxa de aplicação:",null,null,null,null,null,"L/min/m² da área do costado",null,null,null,null,null,null,null,null,"(Item 6.4.4.1 da IT 25-2/2011 de SP)"]
["2.1.3 Vazão de resfriamento (área do costado x taxa de aplicação):",null,null,null,null,null,null,null,null,null,null,null,null,null,null,null,"L/min"]
["2.1.4 Ajuste da vazão considerando a pressão mínima de 45 m.c.a. ",null,null,null,null,null,null,null,null,null,null,null,null,null,null,"(Item 6.4.5.2 da IT 25-2/2011 de SP)"]
["2.1.4.1 Marca/modelo de Esguicho usado no cálculo:"]
["2.1.4.2 Pressão mínima no esguicho:",null,null,null,null,null,null,null,null,"m.c.a.",null,null,null,null,null,"(Em cada esguicho)"]
["2.1.4.3 Alcanse do esguicho:",null,null,null,null,null,null,null,null,"metros",null,null,null,null,null,"(De cada esguicho)"]
["2.1.4.4 Vazão considerada:",null,null,null,null,null,null,null,null,"L/min"]
[{"$f":"IF(E78=\"HORIZONTAL\",\"2.2 TANQUE HORIZONTAL EM CHAMAS NÃO SE RESFRIAM TANQUES VIZINHOS DA MESMA BACIA\",\"2.2 PARA OS TANQUES VIZINHOS:\")","v":"2.2 PARA OS TANQUES VIZINHOS:"}]
["2.2.1 Tipo de proteção:",null,null,null,null,null,null,null,null,null,null,null,null,null,null,"(Tabela 10 da IT 25-2/2011 de SP)"]
["2.2.2 Taxa de aplicação: ",null,null,null,null,null,null,"L/min/m² da área do costado",null,null,null,null,null,null,null,"(Tabela 12 da IT 25-2/2011 de SP)"]
[{"$f":"IF(V73<=2,\"2.2.3 Vazão de resfriamento (áreas dos costados/2 e dos tetos/2 x taxa de aplicação):\",\"2.2.3 Vazão de resfriamento (áreas dos costados/3 e dos tetos/3 x taxa de aplicação):\")","v":"2.2.3 Vazão de resfriamento (áreas dos costados/2 e dos tetos/2 x taxa de aplicação):"},null,null,null,null,null,null,null,null,null,null,null,null,null,null,null,null,null,"L/min"]
["2.2.4 Ajuste da vazão considerando a pressão mínima de 45 m.c.a. ",null,null,null,null,null,null,null,null,null,null,null,null,null,null,"(Item 6.4.5.2 da IT 25-2/2011 de SP)"]
["2.2.4.1 Marca/modelo de Esguicho usado no cálculo:"]
["2.1.4.2 Pressão mínima no esguicho:",null,null,null,null,null,null,null,null,"m.c.a.",null,null,"2.1.4.3 Pressão máxima no esguicho:",null,null,null,null,null,null,null,null,"m.c.a."]
["2.2.4.4 Alcanse mínimo do esguicho:",null,null,null,null,null,null,null,null,"metros",null,null,"2.2.4.5 Alcanse máximo do esguicho:",null,null,null,null,null,null,null,null,"metros"]
["2.2.4.6 Vazão considerada:",null,null,null,null,null,null,null,null,"L/min"]
["2.3 VAZÃO E QUANTIDADE DE ÁGUA PARA O SISTEMA DE RESFRIAMENTO"]
["2.3.1 Vazão total (tanque em chamas + tanques vizinhos):",null,null,null,null,null,null,null,null,null,null,null,null,"L/min",null,"(Item 6.4.5.3 da IT 25-2/2011 de SP)"]
["2.3.2 Tempo de resfriamento: ",null,null,null,null,null,null,null,"minutos",null,null,null,null,null,null,"(Tabela 13 da IT 25-2/2011 de SP)"]
["2.3.3 Quantidade de água para o sistema de resfriamento:",null,null,null,null,null,null,null,null,null,null,null,null,"Litros",null,"(2.3.1 x 2.3.2)"]
["3 SISTEMA DE PROTEÇÃO POR ESPUMA"]
[{"$f":"IF(E78=\"HORIZONTAL\",\"3.1 PARA O TANQUE EM CHAMAS HORIZONTAIS NÃO SE UTILIZA SISTEMA DE PROTEÇÃO POR ESPUMA\",\"3.1 PARA O TANQUE EM CHAMAS\")","v":"3.1 PARA O TANQUE EM CHAMAS"}]
["3.1,1 Tipo de proteção: ",null,null,null,null,null,null,null,null,null,null,null,null,null,null,"(Tabela 03 da IT 25-2/2011 de SP)"]
["3.1.2 Taxa de aplicação:",null,null,null,null,null,"L/min/m² da área do teto",null,null,null,null,null,"(Tabela 04 e item 6.3.6.4 da IT 25-2/2011 de SP)"]
["3.1.3 Vazão da solução de espuma (área do teto x taxa de aplicação): ",null,null,null,null,null,null,null,null,null,null,null,null,null,null,null,"L/min"]
["3.1.4 Dosagem do proporcionador: ",null,null,null,null,null,null,null,null,null,null,null,null,null,null,"(Item 5.6.6.2 da IT 25-1/2011 de SP)"]
["3.1.5 Tempo mínimo de aplicação:",null,null,null,null,null,null,null,null,"minutos",null,null,null,null,null,"(Tabela 04 da IT 25-2/2011 de SP)"]
["3.1.6 Quantidade de solução (água + LGE) para tanque em chamas:",null,null,null,null,null,null,null,null,null,null,null,null,null,null,null,"Litros",null,"(3.1.3 x 3.1.5)"]
["3.1.7 Quantidade de líquido gerador de espuma (LGE):",null,null,null,null,null,null,null,null,null,null,null,null,null,null,null,"Litros",null,"(3.1.4 x 3.1.6)"]
["3.1.8 Quantidade de água para sistema de espuma do tanque em chamas:",null,null,null,null,null,null,null,null,null,null,null,null,null,null,null,"Litros",null,"(3.1.6 - 3.1.7)"]
["3.2 PARA AS LINHAS SUPLEMENTARES (BACIA DE CONTENÇÃO)"]
["3.2.1 Tipo de proteção: ",null,null,null,null,null,null,null,null,null,null,null,null,null,null,"(Item 6.3.9.2 da IT 25-2/2011 de SP)"]
["3.2.2 Número mínimo de aplicadores: ",null,null,null,null,null,null,null,null,null,"unid",null,null,null,null,"(Tabela 08 da IT 25-2/2011 de SP)"]
["3.2.3 Vazão da solução de espuma: ",null,null,null,null,null,null,null,null,null,"L/min",null,null,null,null,"(Item 6.3.9.2 da IT 25-2/2011 de SP)"]
["3.2.4 Dosagem do proporcionador: ",null,null,null,null,null,null,null,null,null,null,null,null,null,null,"(Item 5.6.6.2 da IT 25-1/2011 de SP)"]
["3.2.5 Tempo mínimo de aplicação ",null,null,null,null,null,null,null,null,"minutos",null,null,null,null,null,"(Tabela 09 da IT 25-2/2011 de SP)"]
["3.2.6 Quantidade de solução (água + LGE) para linhas suplementares:",null,null,null,null,null,null,null,null,null,null,null,null,null,null,null,"Litros",null,"(3.2.3 x 3.2.5)"]
["3.2.7 Quantidade de líquido gerador de espuma (LGE):",null,null,null,null,null,null,null,null,null,null,null,null,null,null,null,"Litros",null,"(3.2.4 x 3.2.6)"]
["3.2.8 Quantidade de água para sistema de espuma das Linhas suplementares:",null,null,null,null,null,null,null,null,null,null,null,null,null,null,null,"Litros",null,"(3.2.6 - 3.2.7)"]
["3.3 VAZÃO E QUANTIDADE DE ÁGUA PARA O SISTEMA DE PROTEÇÃO POR ESPUMA"]
["3.3.1 Vazão total (tanque em chamas + linhas suplemenares):",null,null,null,null,null,null,null,null,null,null,null,null,null,"L/min"]
["3.3.2 Quantidade de LGE:",null,null,null,null,null,null,null,null,"Litros",null,null,null,"(Duplicado segundo o item 5.6.5.3 da IT 25-2/2011 de SP)"]
["3.3.3 Quantidade de água para o sistema de proteção por espuma:",null,null,null,null,null,null,null,null,null,null,null,null,null,null,"Litros"]
["RESERVA TÉCNICA DE INCÊNDIO DO CENÁRIO:",null,null,null,null,null,null,null,null,null,null,null,null,"Litros",null,"QUANTIDADE DE LGE:",null,null,null,null,null,"Litros"]
["VAZÃO DO CENÁRIO:",null,null,null,null,null,null,null,null,null,null,null,null,"m³/h"]
[]
[]
["CORPO DE BOMBEIROS MILITAR DO PARÁ"]
["DIRETORIA DE SERVIÇOS TÉCNICOS"]
["Nº do protocolo: ",null,null,null,null,null,null,null,"MEMORIAL PARA TANQUES",null,null,null,null,null,null,null,"Visto do Analista:"]
["ANÁLISES DOS CENÁRIOS"]
["PRIMEIRO CENÁRIO (TANQUE 3 EM CHAMAS)"]
["1 DADOS:"]
[{"$f":"IF($E144=\"HORIZONTAL\",IF($E145=\"CILÍNDRICO\",\"1.1 Diâmetro do tanque:\",\"1.1 Largura do tanque:\"),\"1.1 Diâmetro do tanque:\")","v":"1.1 Diâmetro do tanque:"},null,null,null,null,null,null,"m",null,null,null,"1.11 Quantidade de tanques vizinhos para resfriamento:"]
[{"$f":"IF($E144=\"HORIZONTAL\",IF($E145=\"CILÍNDRICO\",\"1.2 Comprimento tanque:\",\"1.2 Altura do tanque:\"),\"1.2 Altura do tanque:\")","v":"1.2 Altura do tanque:"},null,null,null,null,null,null,"m",null,null,null,"1.12 Distância entre costados do tanque 1 para o:"]
[{"$f":"IF($E144=\"HORIzONTAL\",\"1.3 Área proj. horizontal:\",\"1.3 Área do costado:\")","v":"1.3 Área do costado:"},null,null,null,null,null,null,"m²"]
[{"$f":"IF($E144=\"HORIZONTAL\",IF($E145=\"CILÍNDRICO\",\"1.4 Área lateral:\",\"1.4 Altura do tanque:\"),\"1.4 Área do teto:\")","v":"1.4 Área do teto:"},null,null,null,null,null,null,{"$f":"IF($E145=\"CILÍNDRICO\",\"m²\",\"m\")","v":"m"}]
["1.5 Volume do tanque:",null,null,null,null,null,null,"m³"]
["1.6 Tipo de tanque:"]
["1.7 Tipo de formato:"]
["1.8 Tipo de teto:"]
["1.9 Tipo de líquido inflamável:"]
["1.10 Clase do líquido inflamável:"]
["2 SISTEMA DE PROTEÇÃO POR RESFRIAMENTO"]
[{"$f":"IF(E144=\"HORIZONTAL\",\"2.1 PARA O TANQUE EM CHAMAS HORIZONTAL NÃO SE FAZ RESFRIAMENTO\",\"2.1 PARA O TANQUE EM CHAMAS\")","v":"2.1 PARA O TANQUE EM CHAMAS"}]
["2.1.1 Tipo de proteção:",null,null,null,null,null,null,null,null,null,null,null,null,null,null,"(Tabela 10 da IT 25-2/2011 de SP)"]
["2.1.2 Taxa de aplicação:",null,null,null,null,null,"L/min/m² da área do costado",null,null,null,null,null,null,null,null,"(Item 6.4.4.1 da IT 25-2/2011 de SP)"]
["2.1.3 Vazão de resfriamento (área do costado x taxa de aplicação):",null,null,null,null,null,null,null,null,null,null,null,null,null,null,null,"L/min"]
["2.1.4 Ajuste da vazão considerando a pressão mínima de 45 m.c.a. ",null,null,null,null,null,null,null,null,null,null,null,null,null,null,"(Item 6.4.5.2 da IT 25-2/2011 de SP)"]
["2.1.4.1 Marca/modelo de Esguicho usado no cálculo:"]
["2.1.4.2 Pressão mínima no esguicho:",null,null,null,null,null,null,null,null,"m.c.a.",null,null,null,null,null,"(Em cada esguicho)"]
["2.1.4.3 Alcanse do esguicho:",null,null,null,null,null,null,null,null,"metros",null,null,null,null,null,"(De cada esguicho)"]
["2.1.4.4 Vazão considerada:",null,null,null,null,null,null,null,null,"L/min"]
[{"$f":"IF(E144=\"HORIZONTAL\",\"2.2 TANQUE HORIZONTAL EM CHAMAS NÃO SE RESFRIAM TANQUES VIZINHOS DA MESMA BACIA\",\"2.2 PARA OS TANQUES VIZINHOS:\")","v":"2.2 PARA OS TANQUES VIZINHOS:"}]
["2.2.1 Tipo de proteção:",null,null,null,null,null,null,null,null,null,null,null,null,null,null,"(Tabela 10 da IT 25-2/2011 de SP)"]
["2.2.2 Taxa de aplicação: ",null,null,null,null,null,null,"L/min/m² da área do costado",null,null,null,null,null,null,null,"(Tabela 12 da IT 25-2/2011 de SP)"]
[{"$f":"IF(V139<=2,\"2.2.3 Vazão de resfriamento (áreas dos costados/2 e dos tetos/2 x taxa de aplicação):\",\"2.2.3 Vazão de resfriamento (áreas dos costados/3 e dos tetos/3 x taxa de aplicação):\")","v":"2.2.3 Vazão de resfriamento (áreas dos costados/2 e dos tetos/2 x taxa de aplicação):"},null,null,null,null,null,null,null,null,null,null,null,null,null,null,null,null,null,"L/min"]
["2.2.4 Ajuste da vazão considerando a pressão mínima de 45 m.c.a. ",null,null,null,null,null,null,null,null,null,null,null,null,null,null,"(Item 6.4.5.2 da IT 25-2/2011 de SP)"]
["2.2.4.1 Marca/modelo de Esguicho usado no cálculo:"]
["2.1.4.2 Pressão mínima no esguicho:",null,null,null,null,null,null,null,null,"m.c.a.",null,null,"2.1.4.3 Pressão máxima no esguicho:",null,null,null,null,null,null,null,null,"m.c.a."]
["2.2.4.4 Alcanse mínimo do esguicho:",null,null,null,null,null,null,null,null,"metros",null,null,"2.2.4.5 Alcanse máximo do esguicho:",null,null,null,null,null,null,null,null,"metros"]
["2.2.4.6 Vazão considerada:",null,null,null,null,null,null,null,null,"L/min"]
["2.3 VAZÃO E QUANTIDADE DE ÁGUA PARA O SISTEMA DE RESFRIAMENTO"]
["2.3.1 Vazão total (tanque em chamas + tanques vizinhos):",null,null,null,null,null,null,null,null,null,null,null,null,"L/min",null,"(Item 6.4.5.3 da IT 25-2/2011 de SP)"]
["2.3.2 Tempo de resfriamento: ",null,null,null,null,null,null,null,"minutos",null,null,null,null,null,null,"(Tabela 13 da IT 25-2/2011 de SP)"]
["2.3.3 Quantidade de água para o sistema de resfriamento:",null,null,null,null,null,null,null,null,null,null,null,null,"Litros",null,"(2.3.1 x 2.3.2)"]
["3 SISTEMA DE PROTEÇÃO POR ESPUMA"]
[{"$f":"IF(E144=\"HORIZONTAL\",\"3.1 PARA O TANQUE EM CHAMAS HORIZONTAIS NÃO SE UTILIZA SISTEMA DE PROTEÇÃO POR ESPUMA\",\"3.1 PARA O TANQUE EM CHAMAS\")","v":"3.1 PARA O TANQUE EM CHAMAS"}]
["3.1,1 Tipo de proteção: ",null,null,null,null,null,null,null,null,null,null,null,null,null,null,"(Tabela 03 da IT 25-2/2011 de SP)"]
["3.1.2 Taxa de aplicação:",null,null,null,null,null,"L/min/m² da área do teto",null,null,null,null,null,"(Tabela 04 e item 6.3.6.4 da IT 25-2/2011 de SP)"]
["3.1.3 Vazão da solução de espuma (área do teto x taxa de aplicação): ",null,null,null,null,null,null,null,null,null,null,null,null,null,null,null,"L/min"]
["3.1.4 Dosagem do proporcionador: ",null,null,null,null,null,null,null,null,null,null,null,null,null,null,"(Item 5.6.6.2 da IT 25-1/2011 de SP)"]
["3.1.5 Tempo mínimo de aplicação:",null,null,null,null,null,null,null,null,"minutos",null,null,null,null,null,"(Tabela 04 da IT 25-2/2011 de SP)"]
["3.1.6 Quantidade de solução (água + LGE) para tanque em chamas:",null,null,null,null,null,null,null,null,null,null,null,null,null,null,null,"Litros",null,"(3.1.3 x 3.1.5)"]
["3.1.7 Quantidade de líquido gerador de espuma (LGE):",null,null,null,null,null,null,null,null,null,null,null,null,null,null,null,"Litros",null,"(3.1.4 x 3.1.6)"]
["3.1.8 Quantidade de água para sistema de espuma do tanque em chamas:",null,null,null,null,null,null,null,null,null,null,null,null,null,null,null,"Litros",null,"(3.1.6 - 3.1.7)"]
["3.2 PARA AS LINHAS SUPLEMENTARES (BACIA DE CONTENÇÃO)"]
["3.2.1 Tipo de proteção: ",null,null,null,null,null,null,null,null,null,null,null,null,null,null,"(Item 6.3.9.2 da IT 25-2/2011 de SP)"]
["3.2.2 Número mínimo de aplicadores: ",null,null,null,null,null,null,null,null,null,"unid",null,null,null,null,"(Tabela 08 da IT 25-2/2011 de SP)"]
["3.2.3 Vazão da solução de espuma: ",null,null,null,null,null,null,null,null,null,"L/min",null,null,null,null,"(Item 6.3.9.2 da IT 25-2/2011 de SP)"]
["3.2.4 Dosagem do proporcionador: ",null,null,null,null,null,null,null,null,null,null,null,null,null,null,"(Item 5.6.6.2 da IT 25-1/2011 de SP)"]
["3.2.5 Tempo mínimo de aplicação ",null,null,null,null,null,null,null,null,"minutos",null,null,null,null,null,"(Tabela 09 da IT 25-2/2011 de SP)"]
["3.2.6 Quantidade de solução (água + LGE) para linhas suplementares:",null,null,null,null,null,null,null,null,null,null,null,null,null,null,null,"Litros",null,"(3.2.3 x 3.2.5)"]
["3.2.7 Quantidade de líquido gerador de espuma (LGE):",null,null,null,null,null,null,null,null,null,null,null,null,null,null,null,"Litros",null,"(3.2.4 x 3.2.6)"]
["3.2.8 Quantidade de água para sistema de espuma das Linhas suplementares:",null,null,null,null,null,null,null,null,null,null,null,null,null,null,null,"Litros",null,"(3.2.6 - 3.2.7)"]
["3.3 VAZÃO E QUANTIDADE DE ÁGUA PARA O SISTEMA DE PROTEÇÃO POR ESPUMA"]
["3.3.1 Vazão total (tanque em chamas + linhas suplemenares):",null,null,null,null,null,null,null,null,null,null,null,null,null,"L/min"]
["3.3.2 Quantidade de LGE:",null,null,null,null,null,null,null,null,"Litros",null,null,null,"(Duplicado segundo o item 5.6.5.3 da IT 25-2/2011 de SP)"]
["3.3.3 Quantidade de água para o sistema de proteção por espuma:",null,null,null,null,null,null,null,null,null,null,null,null,null,null,"Litros"]
["RESERVA TÉCNICA DE INCÊNDIO DO CENÁRIO:",null,null,null,null,null,null,null,null,null,null,null,null,"Litros",null,"QUANTIDADE DE LGE:",null,null,null,null,null,"Litros"]
["VAZÃO DO CENÁRIO:",null,null,null,null,null,null,null,null,null,null,null,null,"m³/h"]
[]
[]
["CORPO DE BOMBEIROS MILITAR DO PARÁ"]
["DIRETORIA DE SERVIÇOS TÉCNICOS"]
["Nº do protocolo: ",null,null,null,null,null,null,null,"MEMORIAL PARA TANQUES",null,null,null,null,null,null,null,"Visto do Analista:"]
["ANÁLISES DOS CENÁRIOS"]
["PRIMEIRO CENÁRIO (TANQUE 4 EM CHAMAS)"]
["1 DADOS:"]
[{"$f":"IF($E210=\"HORIZONTAL\",IF($E211=\"CILÍNDRICO\",\"1.1 Diâmetro do tanque:\",\"1.1 Largura do tanque:\"),\"1.1 Diâmetro do tanque:\")","v":"1.1 Diâmetro do tanque:"},null,null,null,null,null,null,"m",null,null,null,"1.11 Quantidade de tanques vizinhos para resfriamento:"]
[{"$f":"IF($E210=\"HORIZONTAL\",IF($E211=\"CILÍNDRICO\",\"1.2 Comprimento tanque:\",\"1.2 Altura do tanque:\"),\"1.2 Altura do tanque:\")","v":"1.2 Altura do tanque:"},null,null,null,null,null,null,"m",null,null,null,"1.12 Distância entre costados do tanque 1 para o:"]
[{"$f":"IF($E210=\"HORIzONTAL\",\"1.3 Área proj. horizontal:\",\"1.3 Área do costado:\")","v":"1.3 Área do costado:"},null,null,null,null,null,null,"m²"]
[{"$f":"IF($E210=\"HORIZONTAL\",IF($E211=\"CILÍNDRICO\",\"1.4 Área lateral:\",\"1.4 Altura do tanque:\"),\"1.4 Área do teto:\")","v":"1.4 Área do teto:"},null,null,null,null,null,null,{"$f":"IF($E211=\"CILÍNDRICO\",\"m²\",\"m\")","v":"m"}]
["1.5 Volume do tanque:",null,null,null,null,null,null,"m³"]
["1.6 Tipo de tanque:"]
["1.7 Tipo de formato:"]
["1.8 Tipo de teto:"]
["1.9 Tipo de líquido inflamável:"]
["1.10 Clase do líquido inflamável:"]
["2 SISTEMA DE PROTEÇÃO POR RESFRIAMENTO"]
[{"$f":"IF(E210=\"HORIZONTAL\",\"2.1 PARA O TANQUE EM CHAMAS HORIZONTAL NÃO SE FAZ RESFRIAMENTO\",\"2.1 PARA O TANQUE EM CHAMAS\")","v":"2.1 PARA O TANQUE EM CHAMAS"}]
["2.1.1 Tipo de proteção:",null,null,null,null,null,null,null,null,null,null,null,null,null,null,"(Tabela 10 da IT 25-2/2011 de SP)"]
["2.1.2 Taxa de aplicação:",null,null,null,null,null,"L/min/m² da área do costado",null,null,null,null,null,null,null,null,"(Item 6.4.4.1 da IT 25-2/2011 de SP)"]
["2.1.3 Vazão de resfriamento (área do costado x taxa de aplicação):",null,null,null,null,null,null,null,null,null,null,null,null,null,null,null,"L/min"]
["2.1.4 Ajuste da vazão considerando a pressão mínima de 45 m.c.a. ",null,null,null,null,null,null,null,null,null,null,null,null,null,null,"(Item 6.4.5.2 da IT 25-2/2011 de SP)"]
["2.1.4.1 Marca/modelo de Esguicho usado no cálculo:"]
["2.1.4.2 Pressão mínima no esguicho:",null,null,null,null,null,null,null,null,"m.c.a.",null,null,null,null,null,"(Em cada esguicho)"]
["2.1.4.3 Alcanse do esguicho:",null,null,null,null,null,null,null,null,"metros",null,null,null,null,null,"(De cada esguicho)"]
["2.1.4.4 Vazão considerada:",null,null,null,null,null,null,null,null,"L/min"]
[{"$f":"IF(E210=\"HORIZONTAL\",\"2.2 TANQUE HORIZONTAL EM CHAMAS NÃO SE RESFRIAM TANQUES VIZINHOS DA MESMA BACIA\",\"2.2 PARA OS TANQUES VIZINHOS:\")","v":"2.2 PARA OS TANQUES VIZINHOS:"}]
["2.2.1 Tipo de proteção:",null,null,null,null,null,null,null,null,null,null,null,null,null,null,"(Tabela 10 da IT 25-2/2011 de SP)"]
["2.2.2 Taxa de aplicação: ",null,null,null,null,null,null,"L/min/m² da área do costado",null,null,null,null,null,null,null,"(Tabela 12 da IT 25-2/2011 de SP)"]
[{"$f":"IF(V205<=2,\"2.2.3 Vazão de resfriamento (áreas dos costados/2 e dos tetos/2 x taxa de aplicação):\",\"2.2.3 Vazão de resfriamento (áreas dos costados/3 e dos tetos/3 x taxa de aplicação):\")","v":"2.2.3 Vazão de resfriamento (áreas dos costados/2 e dos tetos/2 x taxa de aplicação):"},null,null,null,null,null,null,null,null,null,null,null,null,null,null,null,null,null,"L/min"]
["2.2.4 Ajuste da vazão considerando a pressão mínima de 45 m.c.a. ",null,null,null,null,null,null,null,null,null,null,null,null,null,null,"(Item 6.4.5.2 da IT 25-2/2011 de SP)"]
["2.2.4.1 Marca/modelo de Esguicho usado no cálculo:"]
["2.1.4.2 Pressão mínima no esguicho:",null,null,null,null,null,null,null,null,"m.c.a.",null,null,"2.1.4.3 Pressão máxima no esguicho:",null,null,null,null,null,null,null,null,"m.c.a."]
["2.2.4.4 Alcanse mínimo do esguicho:",null,null,null,null,null,null,null,null,"metros",null,null,"2.2.4.5 Alcanse máximo do esguicho:",null,null,null,null,null,null,null,null,"metros"]
["2.2.4.6 Vazão considerada:",null,null,null,null,null,null,null,null,"L/min"]
["2.3 VAZÃO E QUANTIDADE DE ÁGUA PARA O SISTEMA DE RESFRIAMENTO"]
["2.3.1 Vazão total (tanque em chamas + tanques vizinhos):",null,null,null,null,null,null,null,null,null,null,null,null,"L/min",null,"(Item 6.4.5.3 da IT 25-2/2011 de SP)"]
["2.3.2 Tempo de resfriamento: ",null,null,null,null,null,null,null,"minutos",null,null,null,null,null,null,"(Tabela 13 da IT 25-2/2011 de SP)"]
["2.3.3 Quantidade de água para o sistema de resfriamento:",null,null,null,null,null,null,null,null,null,null,null,null,"Litros",null,"(2.3.1 x 2.3.2)"]
["3 SISTEMA DE PROTEÇÃO POR ESPUMA"]
[{"$f":"IF(E210=\"HORIZONTAL\",\"3.1 PARA O TANQUE EM CHAMAS HORIZONTAIS NÃO SE UTILIZA SISTEMA DE PROTEÇÃO POR ESPUMA\",\"3.1 PARA O TANQUE EM CHAMAS\")","v":"3.1 PARA O TANQUE EM CHAMAS"}]
["3.1,1 Tipo de proteção: ",null,null,null,null,null,null,null,null,null,null,null,null,null,null,"(Tabela 03 da IT 25-2/2011 de SP)"]
["3.1.2 Taxa de aplicação:",null,null,null,null,null,"L/min/m² da área do teto",null,null,null,null,null,"(Tabela 04 e item 6.3.6.4 da IT 25-2/2011 de SP)"]
["3.1.3 Vazão da solução de espuma (área do teto x taxa de aplicação): ",null,null,null,null,null,null,null,null,null,null,null,null,null,null,null,"L/min"]
["3.1.4 Dosagem do proporcionador: ",null,null,null,null,null,null,null,null,null,null,null,null,null,null,"(Item 5.6.6.2 da IT 25-1/2011 de SP)"]
["3.1.5 Tempo mínimo de aplicação:",null,null,null,null,null,null,null,null,"minutos",null,null,null,null,null,"(Tabela 04 da IT 25-2/2011 de SP)"]
["3.1.6 Quantidade de solução (água + LGE) para tanque em chamas:",null,null,null,null,null,null,null,null,null,null,null,null,null,null,null,"Litros",null,"(3.1.3 x 3.1.5)"]
["3.1.7 Quantidade de líquido gerador de espuma (LGE):",null,null,null,null,null,null,null,null,null,null,null,null,null,null,null,"Litros",null,"(3.1.4 x 3.1.6)"]
["3.1.8 Quantidade de água para sistema de espuma do tanque em chamas:",null,null,null,null,null,null,null,null,null,null,null,null,null,null,null,"Litros",null,"(3.1.6 - 3.1.7)"]
["3.2 PARA AS LINHAS SUPLEMENTARES (BACIA DE CONTENÇÃO)"]
["3.2.1 Tipo de proteção: ",null,null,null,null,null,null,null,null,null,null,null,null,null,null,"(Item 6.3.9.2 da IT 25-2/2011 de SP)"]
["3.2.2 Número mínimo de aplicadores: ",null,null,null,null,null,null,null,null,null,"unid",null,null,null,null,"(Tabela 08 da IT 25-2/2011 de SP)"]
["3.2.3 Vazão da solução de espuma: ",null,null,null,null,null,null,null,null,null,"L/min",null,null,null,null,"(Item 6.3.9.2 da IT 25-2/2011 de SP)"]
["3.2.4 Dosagem do proporcionador: ",null,null,null,null,null,null,null,null,null,null,null,null,null,null,"(Item 5.6.6.2 da IT 25-1/2011 de SP)"]
["3.2.5 Tempo mínimo de aplicação ",null,null,null,null,null,null,null,null,"minutos",null,null,null,null,null,"(Tabela 09 da IT 25-2/2011 de SP)"]
["3.2.6 Quantidade de solução (água + LGE) para linhas suplementares:",null,null,null,null,null,null,null,null,null,null,null,null,null,null,null,"Litros",null,"(3.2.3 x 3.2.5)"]
["3.2.7 Quantidade de líquido gerador de espuma (LGE):",null,null,null,null,null,null,null,null,null,null,null,null,null,null,null,"Litros",null,"(3.2.4 x 3.2.6)"]
["3.2.8 Quantidade de água para sistema de espuma das Linhas suplementares:",null,null,null,null,null,null,null,null,null,null,null,null,null,null,null,"Litros",null,"(3.2.6 - 3.2.7)"]
["3.3 VAZÃO E QUANTIDADE DE ÁGUA PARA O SISTEMA DE PROTEÇÃO POR ESPUMA"]
["3.3.1 Vazão total (tanque em chamas + linhas suplemenares):",null,null,null,null,null,null,null,null,null,null,null,null,null,"L/min"]
["3.3.2 Quantidade de LGE:",null,null,null,null,null,null,null,null,"Litros",null,null,null,"(Duplicado segundo o item 5.6.5.3 da IT 25-2/2011 de SP)"]
["3.3.3 Quantidade de água para o sistema de proteção por espuma:",null,null,null,null,null,null,null,null,null,null,null,null,null,null,"Litros"]
["RESERVA TÉCNICA DE INCÊNDIO DO CENÁRIO:",null,null,null,null,null,null,null,null,null,null,null,null,"Litros",null,"QUANTIDADE DE LGE:",null,null,null,null,null,"Litros"]
["VAZÃO DO CENÁRIO:",null,null,null,null,null,null,null,null,null,null,null,null,"m³/h"]
[]
[]
["CORPO DE BOMBEIROS MILITAR DO PARÁ"]
["DIRETORIA DE SERVIÇOS TÉCNICOS"]
["Nº do protocolo: ",null,null,null,null,null,null,null,"MEMORIAL PARA TANQUES",null,null,null,null,null,null,null,"Visto do Analista:"]
["ANÁLISES DOS CENÁRIOS"]
["PRIMEIRO CENÁRIO (TANQUE 5 EM CHAMAS)"]
["1 DADOS:"]
[{"$f":"IF($E276=\"HORIZONTAL\",IF($E277=\"CILÍNDRICO\",\"1.1 Diâmetro do tanque:\",\"1.1 Largura do tanque:\"),\"1.1 Diâmetro do tanque:\")","v":"1.1 Diâmetro do tanque:"},null,null,null,null,null,null,"m",null,null,null,"1.11 Quantidade de tanques vizinhos para resfriamento:"]
[{"$f":"IF($E276=\"HORIZONTAL\",IF($E277=\"CILÍNDRICO\",\"1.2 Comprimento tanque:\",\"1.2 Altura do tanque:\"),\"1.2 Altura do tanque:\")","v":"1.2 Altura do tanque:"},null,null,null,null,null,null,"m",null,null,null,"1.12 Distância entre costados do tanque 1 para o:"]
[{"$f":"IF($E276=\"HORIzONTAL\",\"1.3 Área proj. horizontal:\",\"1.3 Área do costado:\")","v":"1.3 Área do costado:"},null,null,null,null,null,null,"m²"]
[{"$f":"IF($E276=\"HORIZONTAL\",IF($E277=\"CILÍNDRICO\",\"1.4 Área lateral:\",\"1.4 Altura do tanque:\"),\"1.4 Área do teto:\")","v":"1.4 Área do teto:"},null,null,null,null,null,null,{"$f":"IF($E277=\"CILÍNDRICO\",\"m²\",\"m\")","v":"m"}]
["1.5 Volume do tanque:",null,null,null,null,null,null,"m³"]
["1.6 Tipo de tanque:"]
["1.7 Tipo de formato:"]
["1.8 Tipo de teto:"]
["1.9 Tipo de líquido inflamável:"]
["1.10 Clase do líquido inflamável:"]
["2 SISTEMA DE PROTEÇÃO POR RESFRIAMENTO"]
[{"$f":"IF(E276=\"HORIZONTAL\",\"2.1 PARA O TANQUE EM CHAMAS HORIZONTAL NÃO SE FAZ RESFRIAMENTO\",\"2.1 PARA O TANQUE EM CHAMAS\")","v":"2.1 PARA O TANQUE EM CHAMAS"}]
["2.1.1 Tipo de proteção:",null,null,null,null,null,null,null,null,null,null,null,null,null,null,"(Tabela 10 da IT 25-2/2011 de SP)"]
["2.1.2 Taxa de aplicação:",null,null,null,null,null,"L/min/m² da área do costado",null,null,null,null,null,null,null,null,"(Item 6.4.4.1 da IT 25-2/2011 de SP)"]
["2.1.3 Vazão de resfriamento (área do costado x taxa de aplicação):",null,null,null,null,null,null,null,null,null,null,null,null,null,null,null,"L/min"]
["2.1.4 Ajuste da vazão considerando a pressão mínima de 45 m.c.a. ",null,null,null,null,null,null,null,null,null,null,null,null,null,null,"(Item 6.4.5.2 da IT 25-2/2011 de SP)"]
["2.1.4.1 Marca/modelo de Esguicho usado no cálculo:"]
["2.1.4.2 Pressão mínima no esguicho:",null,null,null,null,null,null,null,null,"m.c.a.",null,null,null,null,null,"(Em cada esguicho)"]
["2.1.4.3 Alcanse do esguicho:",null,null,null,null,null,null,null,null,"metros",null,null,null,null,null,"(De cada esguicho)"]
["2.1.4.4 Vazão considerada:",null,null,null,null,null,null,null,null,"L/min"]
[{"$f":"IF(E276=\"HORIZONTAL\",\"2.2 TANQUE HORIZONTAL EM CHAMAS NÃO SE RESFRIAM TANQUES VIZINHOS DA MESMA BACIA\",\"2.2 PARA OS TANQUES VIZINHOS:\")","v":"2.2 PARA OS TANQUES VIZINHOS:"}]
["2.2.1 Tipo de proteção:",null,null,null,null,null,null,null,null,null,null,null,null,null,null,"(Tabela 10 da IT 25-2/2011 de SP)"]
["2.2.2 Taxa de aplicação: ",null,null,null,null,null,null,"L/min/m² da área do costado",null,null,null,null,null,null,null,"(Tabela 12 da IT 25-2/2011 de SP)"]
[{"$f":"IF(V271<=2,\"2.2.3 Vazão de resfriamento (áreas dos costados/2 e dos tetos/2 x taxa de aplicação):\",\"2.2.3 Vazão de resfriamento (áreas dos costados/3 e dos tetos/3 x taxa de aplicação):\")","v":"2.2.3 Vazão de resfriamento (áreas dos costados/2 e dos tetos/2 x taxa de aplicação):"},null,null,null,null,null,null,null,null,null,null,null,null,null,null,null,null,null,"L/min"]
["2.2.4 Ajuste da vazão considerando a pressão mínima de 45 m.c.a. ",null,null,null,null,null,null,null,null,null,null,null,null,null,null,"(Item 6.4.5.2 da IT 25-2/2011 de SP)"]
["2.2.4.1 Marca/modelo de Esguicho usado no cálculo:"]
["2.1.4.2 Pressão mínima no esguicho:",null,null,null,null,null,null,null,null,"m.c.a.",null,null,"2.1.4.3 Pressão máxima no esguicho:",null,null,null,null,null,null,null,null,"m.c.a."]
["2.2.4.4 Alcanse mínimo do esguicho:",null,null,null,null,null,null,null,null,"metros",null,null,"2.2.4.5 Alcanse máximo do esguicho:",null,null,null,null,null,null,null,null,"metros"]
["2.2.4.6 Vazão considerada:",null,null,null,null,null,null,null,null,"L/min"]
["2.3 VAZÃO E QUANTIDADE DE ÁGUA PARA O SISTEMA DE RESFRIAMENTO"]
["2.3.1 Vazão total (tanque em chamas + tanques vizinhos):",null,null,null,null,null,null,null,null,null,null,null,null,"L/min",null,"(Item 6.4.5.3 da IT 25-2/2011 de SP)"]
["2.3.2 Tempo de resfriamento: ",null,null,null,null,null,null,null,"minutos",null,null,null,null,null,null,"(Tabela 13 da IT 25-2/2011 de SP)"]
["2.3.3 Quantidade de água para o sistema de resfriamento:",null,null,null,null,null,null,null,null,null,null,null,null,"Litros",null,"(2.3.1 x 2.3.2)"]
["3 SISTEMA DE PROTEÇÃO POR ESPUMA"]
[{"$f":"IF(E276=\"HORIZONTAL\",\"3.1 PARA O TANQUE EM CHAMAS HORIZONTAIS NÃO SE UTILIZA SISTEMA DE PROTEÇÃO POR ESPUMA\",\"3.1 PARA O TANQUE EM CHAMAS\")","v":"3.1 PARA O TANQUE EM CHAMAS"}]
["3.1,1 Tipo de proteção: ",null,null,null,null,null,null,null,null,null,null,null,null,null,null,"(Tabela 03 da IT 25-2/2011 de SP)"]
["3.1.2 Taxa de aplicação:",null,null,null,null,null,"L/min/m² da área do teto",null,null,null,null,null,"(Tabela 04 e item 6.3.6.4 da IT 25-2/2011 de SP)"]
["3.1.3 Vazão da solução de espuma (área do teto x taxa de aplicação): ",null,null,null,null,null,null,null,null,null,null,null,null,null,null,null,"L/min"]
["3.1.4 Dosagem do proporcionador: ",null,null,null,null,null,null,null,null,null,null,null,null,null,null,"(Item 5.6.6.2 da IT 25-1/2011 de SP)"]
["3.1.5 Tempo mínimo de aplicação:",null,null,null,null,null,null,null,null,"minutos",null,null,null,null,null,"(Tabela 04 da IT 25-2/2011 de SP)"]
["3.1.6 Quantidade de solução (água + LGE) para tanque em chamas:",null,null,null,null,null,null,null,null,null,null,null,null,null,null,null,"Litros",null,"(3.1.3 x 3.1.5)"]
["3.1.7 Quantidade de líquido gerador de espuma (LGE):",null,null,null,null,null,null,null,null,null,null,null,null,null,null,null,"Litros",null,"(3.1.4 x 3.1.6)"]
["3.1.8 Quantidade de água para sistema de espuma do tanque em chamas:",null,null,null,null,null,null,null,null,null,null,null,null,null,null,null,"Litros",null,"(3.1.6 - 3.1.7)"]
["3.2 PARA AS LINHAS SUPLEMENTARES (BACIA DE CONTENÇÃO)"]
["3.2.1 Tipo de proteção: ",null,null,null,null,null,null,null,null,null,null,null,null,null,null,"(Item 6.3.9.2 da IT 25-2/2011 de SP)"]
["3.2.2 Número mínimo de aplicadores: ",null,null,null,null,null,null,null,null,null,"unid",null,null,null,null,"(Tabela 08 da IT 25-2/2011 de SP)"]
["3.2.3 Vazão da solução de espuma: ",null,null,null,null,null,null,null,null,null,"L/min",null,null,null,null,"(Item 6.3.9.2 da IT 25-2/2011 de SP)"]
["3.2.4 Dosagem do proporcionador: ",null,null,null,null,null,null,null,null,null,null,null,null,null,null,"(Item 5.6.6.2 da IT 25-1/2011 de SP)"]
["3.2.5 Tempo mínimo de aplicação ",null,null,null,null,null,null,null,null,"minutos",null,null,null,null,null,"(Tabela 09 da IT 25-2/2011 de SP)"]
["3.2.6 Quantidade de solução (água + LGE) para linhas suplementares:",null,null,null,null,null,null,null,null,null,null,null,null,null,null,null,"Litros",null,"(3.2.3 x 3.2.5)"]
["3.2.7 Quantidade de líquido gerador de espuma (LGE):",null,null,null,null,null,null,null,null,null,null,null,null,null,null,null,"Litros",null,"(3.2.4 x 3.2.6)"]
["3.2.8 Quantidade de água para sistema de espuma das Linhas suplementares:",null,null,null,null,null,null,null,null,null,null,null,null,null,null,null,"Litros",null,"(3.2.6 - 3.2.7)"]
["3.3 VAZÃO E QUANTIDADE DE ÁGUA PARA O SISTEMA DE PROTEÇÃO POR ESPUMA"]
["3.3.1 Vazão total (tanque em chamas + linhas suplemenares):",null,null,null,null,null,null,null,null,null,null,null,null,null,"L/min"]
["3.3.2 Quantidade de LGE:",null,null,null,null,null,null,null,null,"Litros",null,null,null,"(Duplicado segundo o item 5.6.5.3 da IT 25-2/2011 de SP)"]
["3.3.3 Quantidade de água para o sistema de proteção por espuma:",null,null,null,null,null,null,null,null,null,null,null,null,null,null,"Litros"]
["RESERVA TÉCNICA DE INCÊNDIO DO CENÁRIO:",null,null,null,null,null,null,null,null,null,null,null,null,"Litros",null,"QUANTIDADE DE LGE:",null,null,null,null,null,"Litros"]
["VAZÃO DO CENÁRIO:",null,null,null,null,null,null,null,null,null,null,null,null,"m³/h"]
[]
[]
["CORPO DE BOMBEIROS MILITAR DO PARÁ"]
["DIRETORIA DE SERVIÇOS TÉCNICOS"]
["Nº do protocolo: ",null,null,null,null,null,null,null,"MEMORIAL PARA TANQUES",null,null,null,null,null,null,null,"Visto do Analista:"]
["ANÁLISES DOS CENÁRIOS"]
["PRIMEIRO CENÁRIO (TANQUE 6 EM CHAMAS)"]
["1 DADOS:"]
[{"$f":"IF($E342=\"HORIZONTAL\",IF($E343=\"CILÍNDRICO\",\"1.1 Diâmetro do tanque:\",\"1.1 Largura do tanque:\"),\"1.1 Diâmetro do tanque:\")","v":"1.1 Diâmetro do tanque:"},null,null,null,null,null,null,"m",null,null,null,"1.11 Quantidade de tanques vizinhos para resfriamento:"]
[{"$f":"IF($E342=\"HORIZONTAL\",IF($E343=\"CILÍNDRICO\",\"1.2 Comprimento tanque:\",\"1.2 Altura do tanque:\"),\"1.2 Altura do tanque:\")","v":"1.2 Altura do tanque:"},null,null,null,null,null,null,"m",null,null,null,"1.12 Distância entre costados do tanque 1 para o:"]
[{"$f":"IF($E342=\"HORIzONTAL\",\"1.3 Área proj. horizontal:\",\"1.3 Área do costado:\")","v":"1.3 Área do costado:"},null,null,null,null,null,null,"m²"]
[{"$f":"IF($E342=\"HORIZONTAL\",IF($E343=\"CILÍNDRICO\",\"1.4 Área lateral:\",\"1.4 Altura do tanque:\"),\"1.4 Área do teto:\")","v":"1.4 Área do teto:"},null,null,null,null,null,null,{"$f":"IF($E343=\"CILÍNDRICO\",\"m²\",\"m\")","v":"m"}]
["1.5 Volume do tanque:",null,null,null,null,null,null,"m³"]
["1.6 Tipo de tanque:"]
["1.7 Tipo de formato:"]
["1.8 Tipo de teto:"]
["1.9 Tipo de líquido inflamável:"]
["1.10 Clase do líquido inflamável:"]
["2 SISTEMA DE PROTEÇÃO POR RESFRIAMENTO"]
[{"$f":"IF(E342=\"HORIZONTAL\",\"2.1 PARA O TANQUE EM CHAMAS HORIZONTAL NÃO SE FAZ RESFRIAMENTO\",\"2.1 PARA O TANQUE EM CHAMAS\")","v":"2.1 PARA O TANQUE EM CHAMAS"}]
["2.1.1 Tipo de proteção:",null,null,null,null,null,null,null,null,null,null,null,null,null,null,"(Tabela 10 da IT 25-2/2011 de SP)"]
["2.1.2 Taxa de aplicação:",null,null,null,null,null,"L/min/m² da área do costado",null,null,null,null,null,null,null,null,"(Item 6.4.4.1 da IT 25-2/2011 de SP)"]
["2.1.3 Vazão de resfriamento (área do costado x taxa de aplicação):",null,null,null,null,null,null,null,null,null,null,null,null,null,null,null,"L/min"]
["2.1.4 Ajuste da vazão considerando a pressão mínima de 45 m.c.a. ",null,null,null,null,null,null,null,null,null,null,null,null,null,null,"(Item 6.4.5.2 da IT 25-2/2011 de SP)"]
["2.1.4.1 Marca/modelo de Esguicho usado no cálculo:"]
["2.1.4.2 Pressão mínima no esguicho:",null,null,null,null,null,null,null,null,"m.c.a.",null,null,null,null,null,"(Em cada esguicho)"]
["2.1.4.3 Alcanse do esguicho:",null,null,null,null,null,null,null,null,"metros",null,null,null,null,null,"(De cada esguicho)"]
["2.1.4.4 Vazão considerada:",null,null,null,null,null,null,null,null,"L/min"]
[{"$f":"IF(E342=\"HORIZONTAL\",\"2.2 TANQUE HORIZONTAL EM CHAMAS NÃO SE RESFRIAM TANQUES VIZINHOS DA MESMA BACIA\",\"2.2 PARA OS TANQUES VIZINHOS:\")","v":"2.2 PARA OS TANQUES VIZINHOS:"}]
["2.2.1 Tipo de proteção:",null,null,null,null,null,null,null,null,null,null,null,null,null,null,"(Tabela 10 da IT 25-2/2011 de SP)"]
["2.2.2 Taxa de aplicação: ",null,null,null,null,null,null,"L/min/m² da área do costado",null,null,null,null,null,null,null,"(Tabela 12 da IT 25-2/2011 de SP)"]
[{"$f":"IF(V337<=2,\"2.2.3 Vazão de resfriamento (áreas dos costados/2 e dos tetos/2 x taxa de aplicação):\",\"2.2.3 Vazão de resfriamento (áreas dos costados/3 e dos tetos/3 x taxa de aplicação):\")","v":"2.2.3 Vazão de resfriamento (áreas dos costados/2 e dos tetos/2 x taxa de aplicação):"},null,null,null,null,null,null,null,null,null,null,null,null,null,null,null,null,null,"L/min"]
["2.2.4 Ajuste da vazão considerando a pressão mínima de 45 m.c.a. ",null,null,null,null,null,null,null,null,null,null,null,null,null,null,"(Item 6.4.5.2 da IT 25-2/2011 de SP)"]
["2.2.4.1 Marca/modelo de Esguicho usado no cálculo:"]
["2.1.4.2 Pressão mínima no esguicho:",null,null,null,null,null,null,null,null,"m.c.a.",null,null,"2.1.4.3 Pressão máxima no esguicho:",null,null,null,null,null,null,null,null,"m.c.a."]
["2.2.4.4 Alcanse mínimo do esguicho:",null,null,null,null,null,null,null,null,"metros",null,null,"2.2.4.5 Alcanse máximo do esguicho:",null,null,null,null,null,null,null,null,"metros"]
["2.2.4.6 Vazão considerada:",null,null,null,null,null,null,null,null,"L/min"]
["2.3 VAZÃO E QUANTIDADE DE ÁGUA PARA O SISTEMA DE RESFRIAMENTO"]
["2.3.1 Vazão total (tanque em chamas + tanques vizinhos):",null,null,null,null,null,null,null,null,null,null,null,null,"L/min",null,"(Item 6.4.5.3 da IT 25-2/2011 de SP)"]
["2.3.2 Tempo de resfriamento: ",null,null,null,null,null,null,null,"minutos",null,null,null,null,null,null,"(Tabela 13 da IT 25-2/2011 de SP)"]
["2.3.3 Quantidade de água para o sistema de resfriamento:",null,null,null,null,null,null,null,null,null,null,null,null,"Litros",null,"(2.3.1 x 2.3.2)"]
["3 SISTEMA DE PROTEÇÃO POR ESPUMA"]
[{"$f":"IF(E342=\"HORIZONTAL\",\"3.1 PARA O TANQUE EM CHAMAS HORIZONTAIS NÃO SE UTILIZA SISTEMA DE PROTEÇÃO POR ESPUMA\",\"3.1 PARA O TANQUE EM CHAMAS\")","v":"3.1 PARA O TANQUE EM CHAMAS"}]
["3.1,1 Tipo de proteção: ",null,null,null,null,null,null,null,null,null,null,null,null,null,null,"(Tabela 03 da IT 25-2/2011 de SP)"]
["3.1.2 Taxa de aplicação:",null,null,null,null,null,"L/min/m² da área do teto",null,null,null,null,null,"(Tabela 04 e item 6.3.6.4 da IT 25-2/2011 de SP)"]
["3.1.3 Vazão da solução de espuma (área do teto x taxa de aplicação): ",null,null,null,null,null,null,null,null,null,null,null,null,null,null,null,"L/min"]
["3.1.4 Dosagem do proporcionador: ",null,null,null,null,null,null,null,null,null,null,null,null,null,null,"(Item 5.6.6.2 da IT 25-1/2011 de SP)"]
["3.1.5 Tempo mínimo de aplicação:",null,null,null,null,null,null,null,null,"minutos",null,null,null,null,null,"(Tabela 04 da IT 25-2/2011 de SP)"]
["3.1.6 Quantidade de solução (água + LGE) para tanque em chamas:",null,null,null,null,null,null,null,null,null,null,null,null,null,null,null,"Litros",null,"(3.1.3 x 3.1.5)"]
["3.1.7 Quantidade de líquido gerador de espuma (LGE):",null,null,null,null,null,null,null,null,null,null,null,null,null,null,null,"Litros",null,"(3.1.4 x 3.1.6)"]
["3.1.8 Quantidade de água para sistema de espuma do tanque em chamas:",null,null,null,null,null,null,null,null,null,null,null,null,null,null,null,"Litros",null,"(3.1.6 - 3.1.7)"]
["3.2 PARA AS LINHAS SUPLEMENTARES (BACIA DE CONTENÇÃO)"]
["3.2.1 Tipo de proteção: ",null,null,null,null,null,null,null,null,null,null,null,null,null,null,"(Item 6.3.9.2 da IT 25-2/2011 de SP)"]
["3.2.2 Número mínimo de aplicadores: ",null,null,null,null,null,null,null,null,null,"unid",null,null,null,null,"(Tabela 08 da IT 25-2/2011 de SP)"]
["3.2.3 Vazão da solução de espuma: ",null,null,null,null,null,null,null,null,null,"L/min",null,null,null,null,"(Item 6.3.9.2 da IT 25-2/2011 de SP)"]
["3.2.4 Dosagem do proporcionador: ",null,null,null,null,null,null,null,null,null,null,null,null,null,null,"(Item 5.6.6.2 da IT 25-1/2011 de SP)"]
["3.2.5 Tempo mínimo de aplicação ",null,null,null,null,null,null,null,null,"minutos",null,null,null,null,null,"(Tabela 09 da IT 25-2/2011 de SP)"]
["3.2.6 Quantidade de solução (água + LGE) para linhas suplementares:",null,null,null,null,null,null,null,null,null,null,null,null,null,null,null,"Litros",null,"(3.2.3 x 3.2.5)"]
["3.2.7 Quantidade de líquido gerador de espuma (LGE):",null,null,null,null,null,null,null,null,null,null,null,null,null,null,null,"Litros",null,"(3.2.4 x 3.2.6)"]
["3.2.8 Quantidade de água para sistema de espuma das Linhas suplementares:",null,null,null,null,null,null,null,null,null,null,null,null,null,null,null,"Litros",null,"(3.2.6 - 3.2.7)"]
["3.3 VAZÃO E QUANTIDADE DE ÁGUA PARA O SISTEMA DE PROTEÇÃO POR ESPUMA"]
["3.3.1 Vazão total (tanque em chamas + linhas suplemenares):",null,null,null,null,null,null,null,null,null,null,null,null,null,"L/min"]
["3.3.2 Quantidade de LGE:",null,null,null,null,null,null,null,null,"Litros",null,null,null,"(Duplicado segundo o item 5.6.5.3 da IT 25-2/2011 de SP)"]
["3.3.3 Quantidade de água para o sistema de proteção por espuma:",null,null,null,null,null,null,null,null,null,null,null,null,null,null,"Litros"]
["RESERVA TÉCNICA DE INCÊNDIO DO CENÁRIO:",null,null,null,null,null,null,null,null,null,null,null,null,"Litros",null,"QUANTIDADE DE LGE:",null,null,null,null,null,"Litros"]
["VAZÃO DO CENÁRIO:",null,null,null,null,null,null,null,null,null,null,null,null,"m³/h"]

{"sheet":"ULTIMA FOLHA MD TANQUE","index":2,"n_rows":58,"n_cols":23,"rows_kept":58,"cut":false,"hidden":false,"merged":[[57,5,57,15],[24,29,24,30],[26,6,26,7],[26,8,26,9],[18,8,18,9],[51,0,51,23],[32,7,32,8],[39,8,39,9],[50,7,50,8],[50,22,50,23],[50,20,50,21],[17,10,17,23],[25,10,25,23],[18,21,18,22],[18,18,18,20],[26,18,26,20],[26,21,26,22],[3,0,3,23],[0,0,0,23],[1,0,1,23],[2,0,2,7],[2,8,2,15],[2,16,2,23],[13,6,13,23],[14,7,14,8],[46,0,46,23],[48,22,48,23],[49,22,49,23],[27,0,27,23],[29,10,29,11],[49,20,49,21],[48,20,48,21],[49,7,49,8],[48,7,48,8],[35,5,35,6],[40,7,40,8],[44,5,44,6],[30,7,30,8],[31,6,31,23],[12,10,12,11],[4,18,4,21],[4,14,4,17],[6,14,6,15],[50,9,50,10],[16,14,16,15],[24,15,24,16],[34,15,34,16],[43,15,43,16],[39,10,39,11],[41,6,41,23],[42,7,42,8],[36,17,36,18],[20,12,20,13],[8,18,8,19],[12,12,12,13],[7,8,7,10],[8,5,8,6],[8,16,8,17],[37,0,37,23],[47,7,47,8],[47,20,47,21],[10,0,10,23],[9,6,9,7],[18,6,18,7],[45,17,45,18],[20,10,20,11],[21,6,21,23],[22,7,22,8],[29,8,29,9],[11,0,11,23],[19,0,19,23]]}
[]
["CORPO DE BOMBEIROS MILITAR DO PARÁ"]
["Nº do protocolo: ",null,null,null,null,null,null,null,"MEMORIAL PARA TANQUES",null,null,null,null,null,null,null,"Visto do Analista:"]
["1. CENÁRIO DE MAIOR RISCO"]
["1.1 Tanque em chamas:",null,null,null,null,null,null,null,null,null,"1.2 Tipo de formato:"]
["1.3 Tipo de teto:",null,null,null,null,null,null,null,null,null,"1.4 Tipo de combustível:"]
["1.5 Volume total dos tanques envolvidos no cenário de maior risco:",null,null,null,null,null,null,null,null,null,null,null,null,null,null,null,"m³"]
["1.6 Quantidade de tanques vizinhos:",null,null,null,null,null,null,null,"1.6.1 Quais:"]
["1.7 Reserva de incêndio:",null,null,null,null,null,null,"Litros",null,null,"1.8 Vazão total do cenário:",null,null,null,null,null,null,null,"m³/h"]
["1.9 Quantidade total de LGE:",null,null,null,null,null,null,null,"Litros"]
["2. PROTEÇÃO POR RESFRIAMENTO"]
["2.1 PARA O TANQUE EM CHAMAS"]
["2.1.1 Vazão de água para o resfriamento: ",null,null,null,null,null,null,null,null,null,null,null,"L/min"]
["2.1.2 Tipo de proteção: "]
["2.1.3 Tempo de resfriamento: ",null,null,null,null,null,null,null,null,"minutos"]
["2.1.4 Taxa de aplicação: ",null,null,null,null,null,null,"L/min/m²",null,null,"da área do costado"]
["2.1.5 Quantidade de água para resfriamento do tanque em chamas:",null,null,null,null,null,null,null,null,null,null,null,null,null,null,null,"Litros"]
["2.1.6 Marca/modelo de Esguicho usado no cálculo:"]
["2.1.7 Alcanse do esguicho:",null,null,null,null,null,null,null,"metros",null,null,null,"2.1.8 Pressão  no hidrante:",null,null,null,null,null,null,null,null,"m.c.a."]
["2.2 PARA OS TANQUES VIZINHOS"]
["2.2.1 Vazão de água para o resfriamento: ",null,null,null,null,null,null,null,null,null,null,null,"L/min"]
["2.2.2 Tipo de proteção: "]
["2.2.3 Tempo de resfriamento: ",null,null,null,null,null,null,null,null,"minutos"]
["2.2.4 Taxa de aplicação: ",null,null,null,null,null,"L/min/m²",null,null,"da área do costado"]
["2.2.5 Quantidade de água para resfriamento do(s) tanque(s) vizinho(s):",null,null,null,null,null,null,null,null,null,null,null,null,null,null,null,null,"Litros"]
["2.2.6 Marca/modelo de Esguicho usado no cálculo:"]
["2.2.7 Menor alcanse do esguicho:",null,null,null,null,null,null,null,"metros",null,null,"2.2.8 Menor pressão no hidrante:",null,null,null,null,null,null,null,null,null,"m.c.a."]
["3. SISTEMA DE PROTEÇÃO POR ESPUMA"]
["3.1 PARA O TANQUE EM CHAMAS"]
["3.1.1 Vazão da solução de espuma: ",null,null,null,null,null,null,null,null,null,"L/min"]
["3.1.2 Dosagem do proporcionador: "]
["3.1.3 Tipo de proteção: "]
["3.1.4 Tempo mínimo de aplicação ",null,null,null,null,null,null,null,null,"minutos"]
["3.1.5 Taxa de aplicação da solução de espuma:",null,null,null,null,null,null,null,null,null,null,"L/min/m²",null,null,"da área do costado"]
["3.1.6 Quantidade de solução (água + LGE) para tanque em chamas:",null,null,null,null,null,null,null,null,null,null,null,null,null,null,null,null,"Litros"]
["3.1.7 Quantidade de LGE:",null,null,null,null,null,null,"Litros",null,"(já duplicado segundo a IT 25-2/2011 SP)"]
["3.1.8 Quantidade de água para sistema de espuma para o tanque em chamas:",null,null,null,null,null,null,null,null,null,null,null,null,null,null,null,null,null,null,"Litros"]
["3.2 PARA AS LINHAS SUPLEMENTARES (BACIA DE CONTENÇÃO)"]
["3.2.1 Número de linhas suplementares: ",null,null,null,null,null,null,null,null,null,"unid"]
["3.2.2 Vazão da solução de espuma: ",null,null,null,null,null,null,null,null,null,"L/min"]
["3.2.3 Dosagem do proporcionador: "]
["3.2.4 Tipo de proteção: "]
["3.2.5 Tempo mínimo de aplicação ",null,null,null,null,null,null,null,null,"minutos"]
["3.2.6 Quantidade de solução (água + LGE) para linhas suplementares:",null,null,null,null,null,null,null,null,null,null,null,null,null,null,null,null,"Litros"]
["3.2.7 Quantidade de LGE:",null,null,null,null,null,null,"Litros",null,"(já duplicado segundo a IT 25-2/2011 SP)"]
["3.2.8 Quantidade de água para sistema de espuma para o tanque em chamas:",null,null,null,null,null,null,null,null,null,null,null,null,null,null,null,null,null,null,"Litros"]
["3.3 PARA PLATAFORMA DE CARREGAMENTO E DESCARREGAMENTO"]
["3.3.1 Taxa de aplicação de espuma:",null,null,null,null,null,null,null,null,"L/min/m²",null,"3.3.5 Dosagem do Proporcionador:"]
["3.3.2 Tempo mínimo de operação:",null,null,null,null,null,null,null,null,"minutos",null,"3.3.6 Quantidade de solução (água + LGE) :",null,null,null,null,null,null,null,null,null,null,"Litros"]
["3.3.3 Área a ser protegida:",null,null,null,null,null,null,null,null,"m²",null,"3.3.7 Quantidade de LGE:",null,null,null,null,null,null,null,null,null,null,"Litros"]
["3.3.4 Vazão da solução de espuma:",null,null,null,null,null,null,null,null,"L/min",null,"3.3.8 Quantidade de água:",null,null,null,null,null,null,null,null,null,null,"Litros"]
["OBSERVAÇÃO"]
["Os cálculos para a plataforma de carregamento e descarregamento também entram na determinação do cenário de"]
["maior risco, por isso os valores encontrados em seus cálculos somente entram no dimensionamento dos sistemas"]
["se forem maiores que os diimensionados para o cenário de maior risco"]
["DATA:_____/______/_________"]
[]
[null,null,null,null,null,"ASSINATURA DO ANALISTA"]